bitfinex-derivatives/quotes_BTCF0:USTF0_20260214
["timestamp","ask_amount","ask_price","bid_price","bid_amount"]
[1771089452093,0.014319,69867.0,69863.0,0.0144]
[1771089452292,0.12548097,69866.0,69854.0,0.14324]
[1771089452489,0.028642,69858.0,69855.0,0.0144]
[1771089452789,0.014321,69857.0,69856.0,0.0144]
[1771089452995,0.014322,69854.0,69849.0,0.014323]
[1771089453290,0.014322,69854.0,69850.0,0.0144]
[1771089453490,0.014322,69853.0,69850.0,0.0144]
[1771089453686,0.014321,69856.0,69850.0,0.028722]
[1771089453992,0.014321,69855.0,69850.0,0.028722]
[1771089454193,0.014321,69858.0,69853.0,0.014322]
[1771089454392,0.014321,69858.0,69854.0,0.0144]
[1771089454690,0.014321,69857.0,69854.0,0.0144]
[1771089454884,0.014321,69856.0,69854.0,0.0144]
[1771089455788,0.01432,69860.0,69854.0,0.0144]
[1771089456494,0.014321,69856.0,69854.0,0.0144]
[1771089456988,0.014321,69855.0,69854.0,0.0144]
[1771089457185,0.014321,69855.0,69849.0,0.014322]
[1771089457396,0.014322,69853.0,69850.0,0.0144]
[1771089457692,0.014322,69852.0,69837.0,0.11286817]
[1771089457898,0.014322,69852.0,69836.0,0.014325]
[1771089457899,0.014323,69849.0,69845.0,0.014323]
[1771089458102,0.014322,69850.0,69846.0,0.0144]
[1771089458697,0.014323,69849.0,69846.0,0.0144]
[1771089458886,0.014323,69848.0,69846.0,0.0144]
[1771089459593,0.014323,69845.0,69840.0,0.157564]
[1771089459795,0.014323,69845.0,69841.0,0.0144]
[1771089460095,0.014324,69844.0,69841.0,0.0144]
[1771089460696,0.014323,69845.0,69841.0,0.0144]
[1771089461091,0.014324,69844.0,69841.0,0.0144]
[1771089461398,0.014323,69849.0,69841.0,0.0144]
[1771089461600,0.014323,69849.0,69844.0,0.014323]
[1771089462499,0.014323,69849.0,69844.0,0.028723]
[1771089463600,0.0144,69851.0,69844.0,0.0144]
[1771089463799,0.0144,69851.0,69842.0,0.0144]
[1771089463800,0.014324,69843.0,69842.0,0.0144]
[1771089464106,0.014324,69842.0,69836.0,0.17193]
[1771089464402,0.014324,69842.0,69836.0,0.157605]
[1771089464600,0.028648,69842.0,69837.0,0.014325]
[1771089464801,0.028648,69842.0,69838.0,0.0144]
[1771089465595,0.014324,69840.0,69834.0,0.014325]
[1771089465795,0.014325,69839.0,69835.0,0.0144]
[1771089466202,0.014325,69838.0,69833.0,0.014326]
[1771089466498,0.014325,69836.0,69831.0,0.014326]
[1771089466698,0.10714162,69838.0,69821.0,0.014328]
[1771089466896,0.10714162,69838.0,69827.0,0.014327]
[1771089466897,0.014326,69833.0,69827.0,0.014327]
[1771089467097,0.0144,69839.0,69832.0,0.10824276]
[1771089467401,0.028725,69839.0,69834.0,0.014325]
[1771089467596,0.0144,69839.0,69835.0,0.014325]
[1771089467900,0.014324,69840.0,69835.0,0.014325]
[1771089468095,0.0144,69841.0,69836.0,0.014325]
[1771089468295,0.0144,69850.0,69848.0,0.014323]
[1771089468503,0.14328,69852.0,69846.0,0.014323]
[1771089468701,0.14328,69852.0,69839.0,0.14328]
[1771089468702,0.014325,69838.0,69831.0,0.15768]
[1771089468899,0.014325,69839.0,69833.0,0.014326]
[1771089469099,0.014324,69842.0,69837.0,0.014325]
[1771089470502,0.014324,69842.0,69837.0,0.02865]
[1771089470806,0.014322,69850.0,69841.0,0.014324]
[1771089471010,0.14328,69852.0,69845.0,0.014323]
[1771089471011,0.014322,69851.0,69845.0,0.014323]
[1771089471311,0.014322,69851.0,69846.0,0.014323]
[1771089471800,0.172002,69852.0,69847.0,0.014323]
[1771089472107,0.014323,69847.0,69845.0,0.0144]
[1771089473306,0.028646,69847.0,69845.0,0.0144]
[1771089473603,0.014324,69844.0,69839.0,0.014324]
[1771089473801,0.014324,69844.0,69840.0,0.15768]
[1771089474104,0.0144,69854.0,69840.0,0.15768]
[1771089474105,0.014322,69854.0,69846.0,0.014323]
[1771089474304,0.014322,69850.0,69846.0,0.014323]
[1771089475198,0.014322,69850.0,69846.0,0.0144]
[1771089476901,0.028645,69850.0,69846.0,0.0144]
[1771089477106,0.014322,69850.0,69846.0,0.0144]
[1771089478607,0.014323,69849.0,69846.0,0.0144]
[1771089478798,0.014322,69850.0,69830.0,0.014326]
[1771089478799,0.014324,69842.0,69830.0,0.014326]
[1771089479006,0.014324,69844.0,69839.0,0.014325]
[1771089479203,0.014324,69843.0,69840.0,0.0144]
[1771089479403,0.014324,69842.0,69840.0,0.0144]
[1771089480406,0.014324,69841.0,69840.0,0.0144]
[1771089480707,0.014324,69841.0,69837.0,0.014325]
[1771089480708,0.014325,69839.0,69834.0,0.014326]
[1771089480906,0.014325,69839.0,69835.0,0.028725]
[1771089481109,0.014324,69842.0,69838.0,0.014325]
[1771089481304,0.014324,69842.0,69839.0,0.0144]
[1771089481609,0.014323,69848.0,69841.0,0.014324]
[1771089481906,0.028723,69847.0,69842.0,0.014324]
[1771089482107,0.014323,69846.0,69842.0,0.014324]
[1771089482297,0.014323,69845.0,69841.0,0.028724]
[1771089482504,0.014324,69842.0,69841.0,0.0144]
[1771089483205,0.014324,69843.0,69835.0,0.14328]
[1771089483409,0.014324,69843.0,69821.0,0.10824276]
[1771089483410,0.014325,69835.0,69830.0,0.014326]
[1771089483612,0.10714162,69842.0,69829.0,0.157606]
[1771089483613,0.014326,69833.0,69831.0,0.0144]
[1771089483902,0.014326,69833.0,69832.0,0.0144]
[1771089484603,0.12146662,69838.0,69827.0,0.14328]
[1771089484804,0.028652,69831.0,69827.0,0.14328]
[1771089485006,0.014326,69831.0,69827.0,0.14328]
[1771089485201,0.014326,69830.0,69827.0,0.14328]
[1771089485612,0.014326,69830.0,69826.0,0.014327]
[1771089485911,0.014326,69833.0,69828.0,0.014327]
[1771089486409,0.014326,69831.0,69827.0,0.028727]
[1771089487010,0.014326,69830.0,69827.0,0.0144]
[1771089487510,0.014326,69830.0,69824.0,0.014328]
[1771089487511,0.014327,69829.0,69824.0,0.014328]
[1771089487709,0.014328,69823.0,69818.0,0.014329]
[1771089488007,0.014328,69822.0,69819.0,0.0144]
[1771089488307,0.014328,69821.0,69817.0,0.014329]
[1771089488607,0.014329,69818.0,69814.0,0.14328]
[1771089488806,0.014329,69817.0,69815.0,0.0144]
[1771089489007,0.014329,69816.0,69812.0,0.01433]
[1771089489208,0.014329,69818.0,69813.0,0.0144]
[1771089489209,0.014329,69817.0,69813.0,0.0144]
[1771089489812,0.014329,69816.0,69813.0,0.0144]
[1771089490110,0.014329,69819.0,69813.0,0.0144]
[1771089490611,0.014329,69820.0,69815.0,0.014329]
[1771089490813,0.014329,69820.0,69816.0,0.0144]
[1771089491008,0.10714162,69838.0,69818.0,0.014329]
[1771089491214,0.014326,69831.0,69824.0,0.014327]
[1771089491412,0.028727,69830.0,69824.0,0.014327]
[1771089491613,0.014327,69829.0,69824.0,0.014327]
[1771089491914,0.028727,69830.0,69824.0,0.014327]
[1771089491915,0.014327,69828.0,69824.0,0.014327]
[1771089492117,0.028727,69830.0,69824.0,0.014327]
[1771089492513,0.0144,69831.0,69825.0,0.014327]
[1771089493015,0.014327,69830.0,69825.0,0.014327]
[1771089493316,0.0144,69831.0,69823.0,0.0144]
[1771089493517,0.014328,69825.0,69823.0,0.0144]
[1771089494020,0.014328,69824.0,69820.0,0.028728]
[1771089494215,0.014328,69824.0,69816.0,0.014329]
[1771089494420,0.014328,69824.0,69810.0,0.01433]
[1771089494421,0.014329,69819.0,69813.0,0.01433]
[1771089494610,0.014328,69821.0,69814.0,0.0144]
[1771089494914,0.014329,69819.0,69815.0,0.0144]
[1771089495115,0.014328,69821.0,69814.0,0.01433]
[1771089495317,0.014329,69819.0,69815.0,0.0144]
[1771089495506,0.028658,69819.0,69815.0,0.0144]
[1771089495712,0.014328,69821.0,69816.0,0.014329]
[1771089496314,0.014329,69820.0,69815.0,0.028729]
[1771089497018,0.014329,69820.0,69816.0,0.014329]
[1771089497219,0.014329,69820.0,69815.0,0.028729]
[1771089497220,0.028658,69820.0,69815.0,0.028729]
[1771089497518,0.014329,69819.0,69815.0,0.0144]
[1771089498513,0.014329,69819.0,69812.0,0.01433]
[1771089498714,0.01433,69814.0,69810.0,0.0144]
[1771089498920,0.01433,69814.0,69810.0,0.02873]
[1771089499218,0.0144,69819.0,69810.0,0.02873]
[1771089499219,0.0144,69819.0,69815.0,0.014329]
[1771089499412,0.028729,69819.0,69814.0,0.01433]
[1771089499809,0.014329,69817.0,69812.0,0.01433]
[1771089501315,0.014329,69816.0,69811.0,0.01433]
[1771089501524,0.01433,69814.0,69807.0,0.014331]
[1771089501719,0.01433,69814.0,69809.0,0.014331]
[1771089503118,0.02866,69814.0,69809.0,0.014331]
[1771089503510,0.01433,69813.0,69809.0,0.014331]
[1771089503715,0.01433,69814.0,69808.0,0.028731]
[1771089504012,0.01433,69814.0,69809.0,0.014331]
[1771089504215,0.014327,69830.0,69815.0,0.12139669]
[1771089504414,0.0144,69829.0,69816.0,0.12146769]
[1771089504619,0.0144,69828.0,69819.0,0.12139669]
[1771089504820,0.0144,69828.0,69826.0,0.014327]
[1771089505116,0.014328,69825.0,69820.0,0.014328]
[1771089505515,0.014327,69826.0,69821.0,0.014328]
[1771089505722,0.014327,69826.0,69822.0,0.0144]
[1771089506117,0.14332,69830.0,69822.0,0.0144]
[1771089506118,0.014326,69832.0,69827.0,0.014327]
[1771089506313,0.0144,69832.0,69822.0,0.014328]
[1771089506618,0.028653,69830.0,69824.0,0.014328]
[1771089506818,0.014326,69830.0,69825.0,0.014327]
[1771089507323,0.014326,69830.0,69824.0,0.014328]
[1771089507620,0.014327,69828.0,69824.0,0.014328]
[1771089508317,0.014327,69828.0,69823.0,0.0144]
[1771089508516,0.014327,69828.0,69823.0,0.028728]
[1771089508821,0.014327,69828.0,69824.0,0.014328]
[1771089509021,0.014327,69829.0,69824.0,0.014328]
[1771089510516,0.014327,69828.0,69824.0,0.014328]
[1771089510918,0.014326,69830.0,69825.0,0.014327]
[1771089511119,0.028726,69832.0,69827.0,0.014327]
[1771089511318,0.014326,69831.0,69826.0,0.014327]
[1771089511615,0.028726,69832.0,69827.0,0.014327]
[1771089511814,0.014326,69831.0,69827.0,0.014327]
[1771089512214,0.014326,69831.0,69826.0,0.014327]
[1771089512922,0.014326,69830.0,69826.0,0.014327]
[1771089513224,0.014326,69831.0,69823.0,0.0144]
[1771089513421,0.014326,69832.0,69823.0,0.028728]
[1771089513622,0.0144,69834.0,69824.0,0.014328]
[1771089513921,0.0144,69834.0,69831.0,0.014326]
[1771089514222,0.028726,69834.0,69829.0,0.014327]
[1771089514414,0.028726,69834.0,69829.0,0.028654]
[1771089514618,0.028726,69834.0,69829.0,0.014327]
[1771089515012,0.0144,69834.0,69831.0,0.014326]
[1771089515217,0.0144,69834.0,69829.0,0.014327]
[1771089515420,0.0144,69834.0,69830.0,0.014326]
[1771089515825,0.028726,69834.0,69830.0,0.014326]
[1771089516024,0.028726,69834.0,69829.0,0.014327]
[1771089516225,0.028726,69834.0,69829.0,1.03e-06]
[1771089516414,0.014326,69833.0,69829.0,0.01432803]
[1771089517124,0.028726,69834.0,69830.0,0.014326]
[1771089517725,0.0144,69834.0,69830.0,0.014326]
[1771089518024,0.0144,69834.0,69829.0,0.01432703]
[1771089518224,0.0144,69834.0,69830.0,0.014326]
[1771089518425,0.028726,69834.0,69830.0,0.014326]
[1771089519217,0.11084741,69847.0,69829.0,1.03e-06]
[1771089519422,0.11084741,69847.0,69832.0,0.10706769]
[1771089519423,0.15772,69846.0,69832.0,0.10706769]
[1771089519720,0.014324,69842.0,69837.0,0.02865]
[1771089519921,0.0144,69843.0,69839.0,0.014324]
[1771089520124,0.028724,69844.0,69839.0,0.014324]
[1771089520326,0.014324,69843.0,69838.0,0.014325]
[1771089520528,0.028724,69844.0,69839.0,0.014324]
[1771089520917,0.014324,69843.0,69837.0,0.014325]
[1771089521125,0.014325,69839.0,69836.0,0.0144]
[1771089521326,0.014325,69838.0,69836.0,0.0144]
[1771089521524,0.014325,69839.0,69836.0,0.0144]
[1771089521830,0.014324,69840.0,69836.0,0.0144]
[1771089522929,0.13328416,69840.0,69825.0,0.014327]
[1771089523133,0.028652,69834.0,69830.0,0.0144]
[1771089523433,0.014326,69830.0,69829.0,1.03e-06]
[1771089523727,0.014326,69832.0,69829.0,1.03e-06]
[1771089523931,0.028725,69836.0,69831.0,0.014326]
[1771089524323,0.014325,69835.0,69831.0,0.014326]
[1771089524724,0.014325,69835.0,69830.0,0.014326]
[1771089527431,0.028648,69842.0,69837.0,0.014325]
[1771089527732,0.014324,69840.0,69836.0,0.0144]
[1771089527932,0.014324,69842.0,69836.0,0.028725]
[1771089528232,0.014325,69837.0,69835.0,0.0144]
[1771089528933,0.0144,69843.0,69833.0,0.0144]
[1771089528934,0.014325,69836.0,69833.0,0.0144]
[1771089529128,0.014325,69836.0,69833.0,0.00015103]
[1771089531627,0.014326,69834.0,69829.0,0.01432703]
[1771089531828,0.014325,69837.0,69832.0,0.014326]
[1771089532324,0.028725,69837.0,69832.0,0.014326]
[1771089532723,0.014325,69836.0,69832.0,0.014326]
[1771089533133,0.028725,69837.0,69832.0,0.014326]
[1771089535631,0.014325,69836.0,69832.0,0.014326]
[1771089536638,0.014325,69836.0,69831.0,0.014326]
[1771089537431,0.014325,69836.0,69831.0,0.028652]
[1771089537737,0.014325,69835.0,69831.0,0.014326]
[1771089538035,0.014325,69836.0,69832.0,0.014326]
[1771089540843,0.028725,69837.0,69832.0,0.028652]
[1771089541035,0.028725,69837.0,69833.0,0.014326]
[1771089542142,0.04305,69837.0,69832.0,0.014326]
[1771089542335,0.014325,69836.0,69832.0,0.014326]
[1771089546342,0.028725,69837.0,69833.0,0.014326]
[1771089546642,0.014325,69836.0,69832.0,0.014326]
[1771089547444,0.014325,69835.0,69831.0,0.014326]
[1771089547831,0.014326,69833.0,69829.0,1.03e-06]
[1771089548132,0.014326,69833.0,69819.0,0.014329]
[1771089548133,0.014328,69822.0,69817.0,0.014329]
[1771089548333,0.014329,69818.0,69817.0,0.0144]
[1771089548541,0.0144,69826.0,69817.0,0.0144]
[1771089548542,0.014328,69821.0,69817.0,0.0144]
[1771089548732,0.014329,69820.0,69817.0,0.0144]
[1771089549940,0.014328,69824.0,69817.0,0.0144]
[1771089550140,0.014328,69822.0,69817.0,0.0144]
[1771089550335,0.014329,69819.0,69817.0,0.0144]
[1771089550537,0.014329,69818.0,69816.0,0.0144]
[1771089551445,0.014328,69821.0,69816.0,0.014329]
[1771089551842,0.014328,69820.0,69816.0,0.014329]
[1771089552043,0.014328,69820.0,69814.0,0.01433]
[1771089552242,0.014329,69820.0,69815.0,0.0144]
[1771089552442,0.014329,69819.0,69815.0,0.0144]
[1771089552644,0.014329,69817.0,69815.0,0.0144]
[1771089552947,0.014329,69818.0,69815.0,0.0144]
[1771089553838,0.014329,69817.0,69815.0,0.0144]
[1771089554044,0.01433,69813.0,69809.0,0.014331]
[1771089554246,0.01433,69814.0,69810.0,0.028731]
[1771089554441,0.01433,69814.0,69810.0,0.0144]
[1771089554839,0.014329,69816.0,69811.0,0.01433]
[1771089555043,0.014329,69817.0,69812.0,0.01433]
[1771089555343,0.01433,69814.0,69813.0,0.0144]
[1771089555738,0.01433,69814.0,69811.0,0.0144]
[1771089555934,0.01433,69814.0,69807.0,0.014331]
[1771089556140,0.014331,69808.0,69805.0,0.0144]
[1771089556540,0.028662,69808.0,69805.0,0.0144]
[1771089556948,0.014331,69809.0,69791.0,0.10250983]
[1771089557142,0.014332,69806.0,69802.0,0.014332]
[1771089557344,0.014332,69806.0,69803.0,0.0144]
[1771089557544,0.014332,69806.0,69801.0,0.014332]
[1771089557545,0.014332,69805.0,69801.0,0.0144]
[1771089557846,0.157649,69816.0,69815.0,0.01433]
[1771089557847,0.14332,69816.0,69815.0,0.01433]
[1771089558048,0.014328,69821.0,69816.0,0.014329]
[1771089558246,0.14332,69825.0,69819.0,0.014329]
[1771089558450,0.014328,69824.0,69819.0,0.014329]
[1771089558649,0.014328,69823.0,69818.0,0.014329]
[1771089559244,0.014328,69822.0,69818.0,0.014329]
[1771089559557,0.014328,69823.0,69818.0,0.014329]
[1771089559744,0.14332,69825.0,69823.0,0.014328]
[1771089559945,0.0144,69828.0,69824.0,0.014328]
[1771089560249,0.014327,69829.0,69824.0,0.014328]
[1771089560445,0.15772,69831.0,69824.0,0.014328]
[1771089560640,0.14332,69839.0,69829.0,0.014327]
[1771089560844,0.11322113,69846.0,69835.0,0.014325]
[1771089560845,0.0036043,69838.0,69835.0,0.014325]
[1771089561043,0.0144,69839.0,69834.0,0.014326]
[1771089561247,0.014324,69840.0,69833.0,0.014326]
[1771089561649,0.014325,69839.0,69833.0,0.014326]
[1771089561950,0.014325,69838.0,69833.0,0.014326]
[1771089563055,0.0144,69839.0,69830.0,0.0144]
[1771089563355,0.0144,69842.0,69836.0,0.014325]
[1771089563946,0.014322,69852.0,69847.0,0.014323]
[1771089564152,0.157642,69854.0,69848.0,0.014323]
[1771089564352,0.0144,69853.0,69848.0,0.014323]
[1771089564550,0.014322,69850.0,69844.0,0.014324]
[1771089564759,0.014322,69850.0,69843.0,0.0144]
[1771089564760,0.014323,69846.0,69843.0,0.0144]
[1771089566560,0.014325,69839.0,69824.0,0.11683783]
[1771089566755,0.014325,69838.0,69832.0,0.014326]
[1771089566954,0.014325,69837.0,69833.0,0.0144]
[1771089567358,0.25654113,69854.0,69834.0,0.10250983]
[1771089567660,0.014323,69847.0,69842.0,0.014324]
[1771089567856,0.014323,69846.0,69841.0,0.028724]
[1771089568661,0.014323,69847.0,69842.0,0.014324]
[1771089568858,0.014323,69848.0,69842.0,0.014324]
[1771089569259,0.014323,69847.0,69842.0,0.014324]
[1771089569660,0.014323,69847.0,69841.0,0.028724]
[1771089570465,0.014323,69846.0,69841.0,0.028724]
[1771089571862,0.014323,69845.0,69841.0,0.0144]
[1771089573268,0.014323,69846.0,69841.0,0.028724]
[1771089573669,0.11322113,69866.0,69846.0,0.10250983]
[1771089573968,0.3194,69880.0,69847.0,0.0144]
[1771089573969,0.11322113,69855.0,69847.0,0.0144]
[1771089574271,0.11322113,69855.0,69848.0,0.0144]
[1771089574272,0.014322,69850.0,69848.0,0.0144]
[1771089574462,0.014322,69851.0,69848.0,0.0144]
[1771089576069,0.014322,69852.0,69848.0,0.0144]
[1771089576471,0.014322,69852.0,69848.0,0.028723]
[1771089576765,0.014322,69853.0,69849.0,0.0144]
[1771089577968,0.11322113,69860.0,69849.0,0.0144]
[1771089577969,0.15768,69871.0,69863.0,0.01432]
[1771089578267,0.15768,69871.0,69869.0,0.014318]
[1771089578467,0.14328,69880.0,69876.0,0.014317]
[1771089578671,0.014314,69891.0,69876.0,0.028717]
[1771089578872,0.0144,69890.0,69887.0,0.014315]
[1771089579169,0.0144,69898.0,69886.0,0.014315]
[1771089579475,0.014313,69895.0,69888.0,0.014314]
[1771089579668,0.0144,69898.0,69896.0,0.014313]
[1771089579867,0.014313,69898.0,69893.0,0.0144]
[1771089580069,0.0144,69902.0,69896.0,0.014313]
[1771089580070,0.028712,69902.0,69896.0,0.014313]
[1771089580269,0.01431,69909.0,69898.0,0.014312]
[1771089580464,0.014312,69899.0,69891.0,0.11682383]
[1771089580769,0.028711,69908.0,69894.0,0.014313]
[1771089580770,0.014312,69900.0,69894.0,0.014313]
[1771089580971,0.014312,69901.0,69895.0,0.028713]
[1771089581372,0.014312,69901.0,69896.0,0.0144]
[1771089581670,0.014313,69896.0,69888.0,0.014314]
[1771089581876,0.014313,69895.0,69889.0,0.028714]
[1771089582074,0.014313,69894.0,69889.0,0.028714]
[1771089582474,0.014312,69899.0,69889.0,0.028714]
[1771089582974,0.014313,69895.0,69889.0,0.028714]
[1771089583572,0.014313,69895.0,69890.0,0.014314]
[1771089583777,0.014313,69895.0,69889.0,0.028714]
[1771089583978,0.014313,69894.0,69889.0,0.0144]
[1771089584180,0.014312,69899.0,69889.0,0.028714]
[1771089584481,0.014312,69902.0,69896.0,0.014313]
[1771089584677,0.014312,69901.0,69895.0,0.014313]
[1771089584988,0.014312,69901.0,69894.0,0.0144]
[1771089585285,0.014313,69896.0,69894.0,0.0144]
[1771089585977,0.014313,69896.0,69890.0,0.014314]
[1771089586176,0.12473123,69903.0,69888.0,0.14328]
[1771089586380,0.12473123,69903.0,69884.0,0.11215626]
[1771089586381,0.014314,69890.0,69884.0,0.014315]
[1771089586577,0.014313,69895.0,69877.0,0.11215626]
[1771089586578,0.014313,69894.0,69882.0,0.014316]
[1771089586782,0.11033123,69889.0,69876.0,0.014317]
[1771089586987,0.014316,69883.0,69878.0,0.014317]
[1771089587485,0.014316,69881.0,69877.0,0.0144]
[1771089587675,0.014315,69884.0,69878.0,0.0144]
[1771089587876,0.014315,69884.0,69879.0,0.0144]
[1771089588076,0.0144,69888.0,69880.0,0.014316]
[1771089588280,0.028715,69888.0,69881.0,0.014316]
[1771089588884,0.014315,69886.0,69880.0,0.028716]
[1771089589282,0.028715,69888.0,69882.0,0.014316]
[1771089589681,0.028715,69888.0,69878.0,0.11215626]
[1771089589682,0.11033123,69904.0,69884.0,0.11215626]
[1771089589880,0.014315,69886.0,69884.0,0.0144]
[1771089590089,0.014315,69885.0,69883.0,0.0144]
[1771089590278,0.014315,69886.0,69883.0,0.0144]
[1771089590687,0.13904523,69891.0,69883.0,0.0144]
[1771089590688,0.028714,69891.0,69883.0,0.0144]
[1771089590883,0.014314,69890.0,69885.0,0.014315]
[1771089591080,0.11033123,69899.0,69885.0,0.014315]
[1771089591081,0.0144,69894.0,69892.0,0.014314]
[1771089591386,0.0144,69894.0,69890.0,0.014314]
[1771089591387,0.014313,69896.0,69890.0,0.014314]
[1771089591687,0.014313,69896.0,69891.0,0.014314]
[1771089591887,0.0144,69897.0,69893.0,0.014313]
[1771089592088,0.0144,69897.0,69895.0,0.014313]
[1771089592489,0.0144,69897.0,69892.0,0.014314]
[1771089592686,0.0144,69897.0,69893.0,0.014313]
[1771089592983,0.0144,69900.0,69895.0,0.014313]
[1771089593189,0.014312,69899.0,69890.0,0.0144]
[1771089593583,0.014312,69899.0,69891.0,0.014314]
[1771089593980,0.014312,69899.0,69893.0,0.014313]
[1771089594180,0.014312,69899.0,69894.0,0.014313]
[1771089594379,0.014313,69898.0,69892.0,0.014314]
[1771089595188,0.014313,69898.0,69893.0,0.014313]
[1771089595583,0.014312,69899.0,69894.0,0.014313]
[1771089596178,0.014313,69897.0,69883.0,0.014315]
[1771089596388,0.014314,69892.0,69886.0,0.014315]
[1771089596583,0.014314,69891.0,69887.0,0.0144]
[1771089596981,0.014314,69889.0,69887.0,0.0144]
[1771089597293,0.014314,69890.0,69887.0,0.0144]
[1771089597791,0.014314,69889.0,69887.0,0.0144]
[1771089598786,0.014314,69889.0,69884.0,0.014315]
[1771089598787,0.13904523,69893.0,69881.0,0.1432]
[1771089598987,0.014314,69890.0,69885.0,0.014315]
[1771089599193,0.0144,69892.0,69889.0,0.014314]
[1771089599390,0.0144,69891.0,69885.0,0.014315]
[1771089599692,0.0144,69893.0,69891.0,0.014314]
[1771089600192,0.0144,69893.0,69889.0,0.014314]
[1771089600690,0.014311,69906.0,69892.0,0.014314]
[1771089600898,0.014312,69902.0,69898.0,0.014312]
[1771089601090,0.014311,69903.0,69899.0,0.014312]
[1771089601294,0.014311,69903.0,69898.0,0.014312]
[1771089601495,0.028711,69905.0,69898.0,0.014312]
[1771089601692,0.014311,69904.0,69899.0,0.014312]
[1771089601990,0.014312,69902.0,69897.0,0.028713]
[1771089602195,0.014312,69902.0,69897.0,0.01440103]
[1771089602391,0.0144,69905.0,69904.0,0.014311]
[1771089602593,0.0144,69906.0,69903.0,0.014311]
[1771089602797,0.0144,69906.0,69902.0,0.014312]
[1771089603097,0.00360429,69906.0,69903.0,0.014311]
[1771089604490,0.00360429,69906.0,69902.0,0.014312]
[1771089604686,0.014312,69902.0,69897.0,8.803e-05]
[1771089604991,0.014311,69905.0,69897.0,0.0144]
[1771089604992,0.014312,69901.0,69897.0,0.0144]
[1771089605192,0.014312,69901.0,69897.0,0.028713]
[1771089605592,0.014311,69904.0,69898.0,0.014312]
[1771089605791,0.014311,69903.0,69898.0,0.014312]
[1771089605989,0.014311,69903.0,69897.0,0.0144]
[1771089606389,0.014312,69902.0,69898.0,0.014312]
[1771089606598,0.014312,69900.0,69895.0,0.014313]
[1771089606794,0.014312,69901.0,69896.0,0.028713]
[1771089608296,0.11033123,69892.0,69870.0,0.11215626]
[1771089608490,0.13020303,69903.0,69878.0,0.014316]
[1771089608491,0.014316,69884.0,69878.0,0.014316]
[1771089608690,0.014316,69884.0,69878.0,0.043032]
[1771089608894,0.014316,69884.0,69879.0,0.014316]
[1771089609796,0.0144,69885.0,69884.0,0.014315]
[1771089610096,0.0144,69885.0,69879.0,0.014316]
[1771089610496,0.028715,69885.0,69880.0,0.014316]
[1771089610696,0.014316,69884.0,69879.0,0.014316]
[1771089610898,0.028715,69887.0,69880.0,0.014316]
[1771089611096,0.11033123,69884.0,69863.0,0.11215626]
[1771089611402,0.014317,69877.0,69872.0,0.014318]
[1771089611595,0.028634,69877.0,69872.0,0.014318]
[1771089611796,0.014317,69876.0,69872.0,0.014318]
[1771089612097,0.014317,69874.0,69871.0,0.0144]
[1771089612288,0.014319,69865.0,69858.0,0.014321]
[1771089612493,0.014319,69866.0,69861.0,0.01432]
[1771089612696,0.014319,69866.0,69859.0,0.01432]
[1771089612893,0.01432,69863.0,69858.0,0.028721]
[1771089613197,0.014319,69865.0,69859.0,0.01432]
[1771089613499,0.01432,69864.0,69859.0,0.01432]
[1771089613797,0.01432,69864.0,69858.0,0.028721]
[1771089614195,0.014319,69865.0,69860.0,0.01432]
[1771089614502,0.0144,69867.0,69862.0,0.01432]
[1771089614690,0.014319,69865.0,69860.0,0.01432]
[1771089614894,0.01432,69864.0,69859.0,0.0144]
[1771089615094,0.014319,69865.0,69860.0,0.01432]
[1771089616001,0.014319,69864.0,69858.0,0.0144]
[1771089616300,0.028719,69867.0,69862.0,0.01432]
[1771089616504,0.0144,69867.0,69862.0,0.01432]
[1771089617205,0.0144,69867.0,69863.0,0.01432]
[1771089617501,0.028719,69867.0,69862.0,0.01432]
[1771089617691,0.014317,69879.0,69864.0,0.11123533]
[1771089617890,0.014317,69879.0,69870.0,0.014318]
[1771089617891,0.014318,69874.0,69870.0,0.014318]
[1771089618094,0.0144,69874.0,69870.0,0.014318]
[1771089618300,0.0144,69881.0,69879.0,0.014316]
[1771089618498,0.1432,69882.0,69881.0,0.014316]
[1771089618805,0.333711,69904.0,69878.0,0.014317]
[1771089618806,0.1432,69891.0,69887.0,0.014315]
[1771089618996,0.014314,69892.0,69887.0,0.014315]
[1771089619196,0.0144,69891.0,69887.0,0.014315]
[1771089619393,0.0144,69891.0,69886.0,0.014315]
[1771089619592,0.014315,69884.0,69883.0,0.0144]
[1771089619794,0.014315,69884.0,69880.0,0.0144]
[1771089620095,0.014315,69886.0,69879.0,0.0144]
[1771089620292,0.014316,69883.0,69879.0,0.0144]
[1771089620496,0.014315,69887.0,69882.0,0.014316]
[1771089620693,0.028715,69888.0,69883.0,0.014316]
[1771089620900,0.0144,69888.0,69879.0,0.028716]
[1771089621094,0.0144,69888.0,61328.0,0.04501256]
[1771089621095,0.014317,69876.0,69866.0,0.014319]
[1771089621298,0.014317,69876.0,69870.0,0.014318]
[1771089621601,0.014317,69875.0,69869.0,0.014318]
[1771089621807,0.014317,69874.0,69868.0,0.014318]
[1771089622008,0.014317,69874.0,69869.0,0.028718]
[1771089622401,0.014318,69873.0,69868.0,0.014319]
[1771089622601,0.014318,69870.0,69865.0,0.014319]
[1771089622801,0.014319,69867.0,69861.0,0.01432]
[1771089623002,0.014319,69867.0,69862.0,0.0144]
[1771089623702,0.014319,69867.0,69862.0,0.02872]
[1771089623898,0.014319,69864.0,69858.0,0.014321]
[1771089624210,0.01432,69864.0,69859.0,0.02872]